[Event "Mitropa Cup 2023 Open selection"]
[Site "Mali Losinj, Croatia"]
[Date "2023.04.11"]
[Round "1.10"]
[White "Srbis, Jurica"]
[Black "Sahidi, Samir"]
[Result "1/2-1/2"]
[TimeControl "90 min + 30 min after 40 moves + 30 sec increment from move 1"]
[WhiteElo "2451"]
[BlackElo "2508"]

1. c4 {[%clk 01:30:56]} {[%emt 00:00:03]} Nf6 {[%clk 01:30:28]} {[%emt
00:00:32]} 2. Nc3 {[%clk 01:31:20]} {[%emt 00:00:06]} e6 {[%clk 01:29:49]}
{[%emt 00:01:09]} 3. e4 {[%clk 01:31:32]} {[%emt 00:00:18]} d5 {[%clk
01:29:37]} {[%emt 00:00:42]} 4. cxd5 {[%clk 01:31:46]} {[%emt 00:00:17]} exd5
{[%clk 01:29:58]} {[%emt 00:00:08]} 5. e5 {[%clk 01:31:51]} {[%emt 00:00:25]}
d4 {[%clk 01:27:29]} {[%emt 00:03:00]} 6. exf6 {[%clk 01:32:05]} {[%emt
00:00:16]} dxc3 {[%clk 01:27:47]} {[%emt 00:00:11]} 7. Bb5+ {[%clk 01:32:24]}
{[%emt 00:00:10]} c6 {[%clk 01:26:22]} {[%emt 00:01:56]} 8. Qe2+ {[%clk
01:32:32]} {[%emt 00:00:23]} Be6 {[%clk 01:26:34]} {[%emt 00:00:16]} 9. Bc4
{[%clk 01:32:39]} {[%emt 00:00:24]} cxd2+ {[%clk 01:21:35]} {[%emt 00:05:29]}
10. Bxd2 {[%clk 01:33:03]} {[%emt 00:00:06]} Qxf6 {[%clk 01:21:57]} {[%emt
00:00:08]} 11. Nf3 {[%clk 01:30:05]} {[%emt 00:03:28]} Be7 {[%clk 01:12:38]}
{[%emt 00:09:49]} 12. O-O {[%clk 01:29:54]} {[%emt 00:00:41]} O-O {[%clk
01:01:46]} {[%emt 00:11:22]} 13. Rfe1 {[%clk 01:29:34]} {[%emt 00:00:50]} Qg6
{[%clk 00:47:04]} {[%emt 00:15:12]} 14. Ne5 {[%clk 01:18:10]} {[%emt 00:11:54]}
Qf5 {[%clk 00:45:03]} {[%emt 00:02:32]} 15. Bd3 {[%clk 01:15:25]} {[%emt
00:03:15]} Qf6 {[%clk 00:45:26]} {[%emt 00:00:06]} 16. Bc3 {[%clk 01:15:24]}
{[%emt 00:00:32]} Qf4 {[%clk 00:38:54]} {[%emt 00:07:01]} 17. g3 {[%clk
01:06:23]} {[%emt 00:09:31]} Qh6 {[%clk 00:38:55]} {[%emt 00:00:28]} 18. Nxf7
{[%clk 01:05:14]} {[%emt 00:01:40]} Bxf7 {[%clk 00:37:55]} {[%emt 00:01:30]} 19.
Qxe7 {[%clk 01:03:29]} {[%emt 00:02:15]} Na6 {[%clk 00:36:47]} {[%emt
00:01:35]} 20. Re4 {[%clk 00:50:58]} {[%emt 00:13:04]} Rae8 {[%clk 00:33:33]}
{[%emt 00:03:43]} 21. Qh4 {[%clk 00:51:05]} {[%emt 00:00:24]} Rxe4 {[%clk
00:27:22]} {[%emt 00:06:41]} 22. Qxh6 {[%clk 00:50:58]} {[%emt 00:00:38]} gxh6
{[%clk 00:27:45]} {[%emt 00:00:06]} 23. Bxe4 {[%clk 00:51:22]} {[%emt
00:00:04]} Re8 {[%clk 00:26:06]} {[%emt 00:02:10]} 24. Bf3 {[%clk 00:45:32]}
{[%emt 00:06:21]} Nc7 {[%clk 00:26:07]} {[%emt 00:00:28]} 25. Rd1 {[%clk
00:42:22]} {[%emt 00:03:41]} Nd5 {[%clk 00:24:21]} {[%emt 00:02:16]} 26. Bd2
{[%clk 00:40:07]} {[%emt 00:02:44]} Kg7 {[%clk 00:16:10]} {[%emt 00:08:41]} 27.
a3 {[%clk 00:38:41]} {[%emt 00:01:56]} h5 {[%clk 00:12:18]} {[%emt 00:04:23]}
28. h4 {[%clk 00:38:16]} {[%emt 00:00:56]} Kf6 {[%clk 00:11:11]} {[%emt
00:01:36]} 29. b4 {[%clk 00:37:36]} {[%emt 00:01:10]} Kf5 {[%clk 00:06:15]}
{[%emt 00:05:26]} 30. Bg5 {[%clk 00:30:37]} {[%emt 00:07:29]} a6 {[%clk
00:05:35]} {[%emt 00:01:10]} 31. Kg2 {[%clk 00:28:09]} {[%emt 00:02:59]} Ke5
{[%clk 00:03:05]} {[%emt 00:02:59]} 32. Bc1 {[%clk 00:23:12]} {[%emt 00:05:26]}
Kd6 {[%clk 00:02:08]} {[%emt 00:01:27]} 33. a4 {[%clk 00:19:04]} {[%emt
00:04:38]} Kc7 {[%clk 00:01:37]} {[%emt 00:01:01]} 34. Bd2 {[%clk 00:19:24]}
{[%emt 00:00:10]} Bg6 {[%clk 00:01:44]} {[%emt 00:00:24]} 35. Kg1 {[%clk
00:19:36]} {[%emt 00:00:18]} Kb6 {[%clk 00:01:05]} {[%emt 00:01:08]} 36. Rc1
{[%clk 00:18:42]} {[%emt 00:01:24]} Rd8 {[%clk 00:01:15]} {[%emt 00:00:20]} 37.
Rc5 {[%clk 00:10:18]} {[%emt 00:08:55]} Kc7 {[%clk 00:00:59]} {[%emt 00:00:46]}
38. Bg2 {[%clk 00:06:15]} {[%emt 00:04:33]} Nf6 {[%clk 00:00:57]} {[%emt
00:00:32]} 39. Bf4+ {[%clk 00:06:25]} {[%emt 00:00:20]} Kb6 {[%clk 00:01:06]}
{[%emt 00:00:20]} 40. Rc1 {[%clk 00:35:48]} {[%emt 00:01:07]} Nd5 {[%clk
00:30:54]} {[%emt 00:00:43]} 41. Bg5 {[%clk 00:31:29]} {[%emt 00:04:49]} Rd7
{[%clk 00:28:36]} {[%emt 00:02:48]} 42. Rc4 {[%clk 00:30:19]} {[%emt 00:01:40]}
a5 {[%clk 00:27:33]} {[%emt 00:01:33]} 43. bxa5+ {[%clk 00:28:38]} {[%emt
00:02:11]} Kxa5 {[%clk 00:27:27]} {[%emt 00:00:35]} 44. Bd2+ {[%clk 00:29:02]}
{[%emt 00:00:06]} Ka6 {[%clk 00:26:38]} {[%emt 00:01:19]} 45. Bf1 {[%clk
00:26:52]} {[%emt 00:02:40]} Ka7 {[%clk 00:25:14]} {[%emt 00:01:55]} 46. a5
{[%clk 00:26:35]} {[%emt 00:00:47]} Re7 {[%clk 00:21:47]} {[%emt 00:03:55]} 47.
Bg2 {[%clk 00:21:58]} {[%emt 00:05:08]} Re2 {[%clk 00:21:19]} {[%emt 00:00:58]}
48. Rd4 {[%clk 00:21:47]} {[%emt 00:00:42]} Re5 {[%clk 00:15:59]} {[%emt
00:05:50]} 49. f4 {[%clk 00:18:12]} {[%emt 00:04:05]} Rf5 {[%clk 00:15:55]}
{[%emt 00:00:34]} 50. Be4 {[%clk 00:16:56]} {[%emt 00:01:46]} Rf6 {[%clk
00:16:15]} {[%emt 00:00:10]} 51. Bxd5 {[%clk 00:13:06]} {[%emt 00:04:19]} cxd5
{[%clk 00:15:48]} {[%emt 00:00:57]} 52. Rxd5 {[%clk 00:13:25]} {[%emt
00:00:11]} Ka6 {[%clk 00:16:06]} {[%emt 00:00:12]} 53. Kf2 {[%clk 00:07:14]}
{[%emt 00:06:41]} b6 {[%clk 00:16:22]} {[%emt 00:00:14]} 54. Bb4 {[%clk
00:06:25]} {[%emt 00:01:19]} bxa5 {[%clk 00:16:16]} {[%emt 00:00:36]} 55. Rxa5+
{[%clk 00:06:50]} {[%emt 00:00:05]} Kb6 {[%clk 00:16:20]} {[%emt 00:00:27]} 56.
Ke3 {[%clk 00:06:19]} {[%emt 00:01:00]} Rf5 {[%clk 00:14:49]} {[%emt 00:02:01]}
57. Ra3 {[%clk 00:02:09]} {[%emt 00:04:40]} Rd5 {[%clk 00:14:58]} {[%emt
00:00:21]} 58. Be7 {[%clk 00:02:00]} {[%emt 00:00:40]} Kc6 {[%clk 00:15:04]}
{[%emt 00:00:24]} 59. Bf6 {[%clk 00:02:04]} {[%emt 00:00:26]} Kd7 {[%clk
00:15:18]} {[%emt 00:00:16]} 60. Ra6 {[%clk 00:01:02]} {[%emt 00:01:33]} Rd3+
{[%clk 00:15:23]} {[%emt 00:00:24]} 61. Kf2 {[%clk 00:01:31]} {[%emt 00:00:02]}
Rd2+ {[%clk 00:15:30]} {[%emt 00:00:22]} 62. Ke3 {[%clk 00:01:16]} {[%emt
00:00:44]} Rd3+ {[%clk 00:15:53]} {[%emt 00:00:08]} 63. Kf2 {[%clk 00:01:41]}
{[%emt 00:00:05]} Rd2+ {[%clk 00:16:18]} {[%emt 00:00:04]} 64. Ke1 {[%clk
00:01:58]} {[%emt 00:00:13]} Rd3 {[%clk 00:15:01]} {[%emt 00:01:47]} 65. Ra5
{[%clk 00:02:12]} {[%emt 00:00:16]} Ke6 {[%clk 00:15:11]} {[%emt 00:00:21]} 66.
Bg5 {[%clk 00:02:37]} {[%emt 00:00:05]} Rd5 {[%clk 00:14:38]} {[%emt 00:01:02]}
67. Rxd5 {[%clk 00:02:12]} {[%emt 00:00:56]} 1/2-1/2

[Event "Mitropa Cup 2023 Open selection"]
[Site "Mali Losinj, Croatia"]
[Date "2023.04.11"]
[Round "1.11"]
[White "Haring, Filip"]
[Black "Tica, Sven"]
[Result "1-0"]
[TimeControl "90 min + 30 min after 40 moves + 30 sec increment from move 1"]
[WhiteElo "2477"]
[BlackElo "2438"]

1. e4 {[%clk 01:30:56]} {[%emt 00:00:04]} c6 {[%clk 01:30:46]} {[%emt
00:00:14]} 2. d4 {[%clk 01:31:12]} {[%emt 00:00:14]} d5 {[%clk 01:31:09]}
{[%emt 00:00:07]} 3. exd5 {[%clk 01:31:32]} {[%emt 00:00:10]} cxd5 {[%clk
01:31:32]} {[%emt 00:00:07]} 4. Bd3 {[%clk 01:31:48]} {[%emt 00:00:15]} Nc6
{[%clk 01:31:17]} {[%emt 00:00:44]} 5. c3 {[%clk 01:32:03]} {[%emt 00:00:16]}
Nf6 {[%clk 01:30:31]} {[%emt 00:01:16]} 6. h3 {[%clk 01:32:10]} {[%emt
00:00:24]} g6 {[%clk 01:27:28]} {[%emt 00:03:32]} 7. Nf3 {[%clk 01:31:57]}
{[%emt 00:00:42]} Bg7 {[%clk 01:24:29]} {[%emt 00:03:29]} 8. O-O {[%clk
01:31:34]} {[%emt 00:00:53]} O-O {[%clk 01:24:00]} {[%emt 00:00:59]} 9. Bf4
{[%clk 01:25:20]} {[%emt 00:06:44]} Nd7 {[%clk 01:15:43]} {[%emt 00:08:48]} 10.
Re1 {[%clk 01:19:27]} {[%emt 00:06:23]} Re8 {[%clk 01:12:32]} {[%emt 00:03:41]}
11. Na3 {[%clk 01:04:30]} {[%emt 00:15:27]} a6 {[%clk 01:02:35]} {[%emt
00:10:26]} 12. Nc2 {[%clk 01:00:05]} {[%emt 00:04:55]} b5 {[%clk 00:56:26]}
{[%emt 00:06:38]} 13. a4 {[%clk 00:54:32]} {[%emt 00:06:04]} bxa4 {[%clk
00:52:38]} {[%emt 00:04:17]} 14. Rxa4 {[%clk 00:50:48]} {[%emt 00:04:15]} Nb6
{[%clk 00:50:50]} {[%emt 00:02:18]} 15. Ra1 {[%clk 00:49:40]} {[%emt 00:01:38]}
f6 {[%clk 00:45:38]} {[%emt 00:05:43]} 16. Qe2 {[%clk 00:39:32]} {[%emt
00:10:37]} e5 {[%clk 00:20:09]} {[%emt 00:25:59]} 17. Bxa6 {[%clk 00:38:10]}
{[%emt 00:01:52]} Bxh3 {[%clk 00:16:33]} {[%emt 00:04:06]} 18. dxe5 {[%clk
00:24:09]} {[%emt 00:14:32]} Bg4 {[%clk 00:14:41]} {[%emt 00:02:21]} 19. Bb5
{[%clk 00:18:57]} {[%emt 00:05:42]} Rxa1 {[%clk 00:11:48]} {[%emt 00:03:23]} 20.
Rxa1 {[%clk 00:18:15]} {[%emt 00:01:13]} Qc8 {[%clk 00:07:41]} {[%emt
00:04:37]} 21. Ra6 {[%clk 00:13:27]} {[%emt 00:05:17]} Qb7 {[%clk 00:03:52]}
{[%emt 00:04:18]} 22. Be3 {[%clk 00:11:30]} {[%emt 00:02:28]} d4 {[%clk
00:02:42]} {[%emt 00:01:40]} 23. Ncxd4 {[%clk 00:10:16]} {[%emt 00:01:44]} Nxd4
{[%clk 00:02:11]} {[%emt 00:01:01]} 24. Bxd4 {[%clk 00:09:58]} {[%emt
00:00:49]} Re6 {[%clk 00:02:39]} 25. Bxb6 {[%clk 00:07:26]} {[%emt 00:03:02]}
Rxb6 {[%clk 00:03:01]} {[%emt 00:00:08]} 26. Bc4+ {[%clk 00:07:18]} {[%emt
00:00:39]} Kf8 {[%clk 00:02:34]} {[%emt 00:00:56]} 27. Qd3 {[%clk 00:06:10]}
{[%emt 00:01:38]} Qb8 {[%clk 00:01:21]} {[%emt 00:01:43]} 28. Qd5 {[%clk
00:05:19]} {[%emt 00:01:22]} 1-0

[Event "Mitropa Cup 2023 Open selection"]
[Site "Mali Losinj, Croatia"]
[Date "2023.04.11"]
[Round "1.12"]
[White "Zelcic, Robert"]
[Black "Turcan, Richard"]
[Result "1-0"]
[TimeControl "90 min + 30 min after 40 moves + 30 sec increment from move 1"]
[WhiteElo "2492"]
[BlackElo "2405"]

1. e4 {[%clk 01:30:57]} {[%emt 00:00:02]} c5 {[%clk 01:30:53]} {[%emt
00:00:07]} 2. Nf3 {[%clk 01:31:25]} {[%emt 00:00:03]} d6 {[%clk 01:31:16]}
{[%emt 00:00:07]} 3. d4 {[%clk 01:31:43]} {[%emt 00:00:12]} cxd4 {[%clk
01:31:40]} {[%emt 00:00:05]} 4. Nxd4 {[%clk 01:32:12]} {[%emt 00:00:02]} Nf6
{[%clk 01:32:01]} {[%emt 00:00:09]} 5. Nc3 {[%clk 01:32:37]} {[%emt 00:00:05]}
g6 {[%clk 01:32:24]} {[%emt 00:00:07]} 6. Bc4 {[%clk 01:32:24]} {[%emt
00:00:42]} Bg7 {[%clk 01:32:47]} {[%emt 00:00:07]} 7. O-O {[%clk 01:32:51]}
{[%emt 00:00:03]} O-O {[%clk 01:33:06]} {[%emt 00:00:10]} 8. Re1 {[%clk
01:33:10]} {[%emt 00:00:12]} Nc6 {[%clk 01:33:09]} {[%emt 00:00:27]} 9. h3
{[%clk 01:33:37]} {[%emt 00:00:05]} Nxd4 {[%clk 01:32:50]} {[%emt 00:00:47]} 10.
Qxd4 {[%clk 01:34:05]} {[%emt 00:00:02]} Bd7 {[%clk 01:32:40]} {[%emt
00:00:40]} 11. Qd3 {[%clk 01:30:09]} {[%emt 00:04:26]} Bc6 {[%clk 01:31:55]}
{[%emt 00:01:15]} 12. Bg5 {[%clk 01:27:08]} {[%emt 00:03:32]} Qa5 {[%clk
01:13:13]} {[%emt 00:19:11]} 13. Qd2 {[%clk 01:19:02]} {[%emt 00:08:36]} Rfe8
{[%clk 01:09:03]} {[%emt 00:04:40]} 14. Rad1 {[%clk 01:07:30]} {[%emt
00:12:02]} Rac8 {[%clk 00:59:21]} {[%emt 00:10:12]} 15. Bb3 {[%clk 01:05:34]}
{[%emt 00:02:27]} b5 {[%clk 00:44:00]} {[%emt 00:15:49]} 16. Qf4 {[%clk
00:52:34]} {[%emt 00:13:31]} Qc7 {[%clk 00:30:25]} {[%emt 00:14:06]} 17. a4
{[%clk 00:30:54]} {[%emt 00:22:10]} b4 {[%clk 00:22:41]} {[%emt 00:08:13]} 18.
Nb5 {[%clk 00:30:48]} {[%emt 00:00:35]} Bxb5 {[%clk 00:21:42]} {[%emt
00:01:31]} 19. axb5 {[%clk 00:31:09]} {[%emt 00:00:09]} Rb8 {[%clk 00:15:45]}
{[%emt 00:06:27]} 20. Ra1 {[%clk 00:25:32]} {[%emt 00:06:06]} Red8 {[%clk
00:10:53]} {[%emt 00:05:22]} 21. e5 {[%clk 00:23:52]} {[%emt 00:02:10]} dxe5
{[%clk 00:11:12]} {[%emt 00:00:11]} 22. Qxb4 {[%clk 00:24:10]} {[%emt
00:00:12]} Nd5 {[%clk 00:04:27]} {[%emt 00:07:15]} 23. Qa5 {[%clk 00:23:26]}
{[%emt 00:01:14]} Qxa5 {[%clk 00:02:45]} {[%emt 00:02:12]} 24. Rxa5 {[%clk
00:23:53]} {[%emt 00:00:03]} e4 {[%clk 00:02:37]} {[%emt 00:00:39]} 25. c4
{[%clk 00:18:58]} {[%emt 00:05:25]} Bxb2 {[%clk 00:00:38]} {[%emt 00:02:29]} 26.
Rxe4 {[%clk 00:18:29]} {[%emt 00:00:59]} Bf6 {[%clk 00:00:32]} {[%emt
00:00:36]} 27. Bxf6 {[%clk 00:16:14]} {[%emt 00:02:45]} Nxf6 {[%clk 00:01:01]}
{[%emt 00:00:01]} 28. Rxe7 {[%clk 00:16:37]} {[%emt 00:00:07]} Rd3 {[%clk
00:01:12]} {[%emt 00:00:19]} 29. Re3 {[%clk 00:13:05]} {[%emt 00:04:01]} Rxe3
{[%clk 00:01:38]} {[%emt 00:00:05]} 30. fxe3 {[%clk 00:13:31]} {[%emt
00:00:03]} Rb7 {[%clk 00:01:59]} {[%emt 00:00:08]} 31. c5 {[%clk 00:13:58]}
{[%emt 00:00:04]} Kf8 {[%clk 00:01:08]} {[%emt 00:01:22]} 32. g4 {[%clk
00:07:41]} {[%emt 00:06:47]} Ke7 {[%clk 00:01:00]} {[%emt 00:00:37]} 33. Kg2
{[%clk 00:08:00]} {[%emt 00:00:11]} Rc7 {[%clk 00:00:41]} {[%emt 00:00:50]} 34.
b6 {[%clk 00:07:54]} {[%emt 00:00:35]} axb6 {[%clk 00:01:05]} {[%emt 00:00:07]}
35. cxb6 {[%clk 00:08:23]} {[%emt 00:00:01]} Rd7 {[%clk 00:00:43]} {[%emt
00:00:52]} 36. Ra7 {[%emt 00:00:49]} Kd8 {[%clk 00:00:38]} 37. Ra8+ {[%clk
00:08:27]} {[%emt 00:00:40]} Ke7 {[%clk 00:01:07]} {[%emt 00:00:01]} 38. Kf3
{[%clk 00:08:40]} {[%emt 00:00:16]} Kd6 {[%clk 00:00:42]} {[%emt 00:00:57]} 39.
Ra7 {[%clk 00:08:47]} {[%emt 00:00:22]} Re7 {[%clk 00:00:36]} {[%emt 00:00:37]}
40. Rxe7 {[%clk 00:34:44]} {[%emt 00:04:32]} Kxe7 {[%clk 00:31:03]} {[%emt
00:00:03]} 41. g5 {[%clk 00:31:58]} {[%emt 00:03:16]} Nd7 {[%clk 00:31:13]}
{[%emt 00:00:19]} 42. b7 {[%clk 00:32:27]} {[%emt 00:00:01]} f6 {[%clk
00:21:02]} {[%emt 00:10:41]} 43. Kf4 {[%clk 00:32:17]} {[%emt 00:00:41]} Nb8
{[%clk 00:13:09]} {[%emt 00:08:24]} 44. Bg8 {[%clk 00:31:46]} {[%emt 00:01:00]}
Kf8 {[%clk 00:13:35]} {[%emt 00:00:05]} 45. Bxh7 {[%clk 00:30:28]} {[%emt
00:01:47]} Kg7 {[%clk 00:14:00]} {[%emt 00:00:05]} 46. gxf6+ {[%clk 00:30:54]}
{[%emt 00:00:04]} Kxh7 {[%clk 00:13:35]} {[%emt 00:00:56]} 47. Ke5 {[%clk
00:31:15]} {[%emt 00:00:07]} Kg8 {[%clk 00:12:09]} {[%emt 00:01:58]} 48. Ke6
{[%clk 00:31:44]} Kf8 {[%clk 00:12:18]} {[%emt 00:00:21]} 49. e4 {[%clk
00:32:06]} {[%emt 00:00:08]} Ke8 {[%clk 00:10:58]} {[%emt 00:01:50]} 50. e5
{[%clk 00:32:27]} {[%emt 00:00:08]} Kf8 {[%clk 00:08:38]} {[%emt 00:02:50]} 51.
Kd6 {[%clk 00:32:36]} {[%emt 00:00:22]} 1-0

[Event "Mitropa Cup 2023 Open selection"]
[Site "Mali Losinj, Croatia"]
[Date "2023.04.11"]
[Round "1.13"]
[White "Sebenik, Matej"]
[Black "Erdos, Viktor"]
[Result "1/2-1/2"]
[TimeControl "90 min + 30 min after 40 moves + 30 sec increment from move 1"]
[WhiteElo "2523"]
[BlackElo "2583"]

1. d4 {[%clk 01:30:54]} {[%emt 00:00:05]} Nf6 {[%clk 01:29:56]} {[%emt
00:01:04]} 2. Nf3 {[%clk 01:31:09]} {[%emt 00:00:15]} g6 {[%clk 01:30:19]}
{[%emt 00:00:07]} 3. c4 {[%clk 01:31:15]} {[%emt 00:00:24]} Bg7 {[%clk
01:30:43]} {[%emt 00:00:05]} 4. g3 {[%clk 01:30:58]} {[%emt 00:00:48]} O-O
{[%clk 01:31:03]} {[%emt 00:00:10]} 5. Bg2 {[%clk 01:31:23]} {[%emt 00:00:05]}
d6 {[%clk 01:31:27]} {[%emt 00:00:06]} 6. Nc3 {[%clk 01:31:35]} {[%emt
00:00:18]} Nc6 {[%clk 01:31:45]} {[%emt 00:00:12]} 7. O-O {[%clk 01:31:54]}
{[%emt 00:00:11]} e5 {[%clk 01:32:07]} {[%emt 00:00:08]} 8. dxe5 {[%clk
01:30:48]} {[%emt 00:01:36]} dxe5 {[%clk 01:32:17]} {[%emt 00:00:20]} 9. Bg5
{[%clk 01:31:06]} {[%emt 00:00:13]} h6 {[%clk 01:31:23]} {[%emt 00:01:23]} 10.
Qxd8 {[%clk 01:30:13]} {[%emt 00:01:23]} Rxd8 {[%clk 01:31:44]} {[%emt
00:00:09]} 11. Bxf6 {[%clk 01:30:33]} {[%emt 00:00:11]} Bxf6 {[%clk 01:32:08]}
{[%emt 00:00:05]} 12. Nd5 {[%clk 01:30:45]} {[%emt 00:00:19]} Kg7 {[%clk
01:32:28]} {[%emt 00:00:10]} 13. Nxc7 {[%clk 01:29:41]} {[%emt 00:01:34]} Rb8
{[%clk 01:32:46]} {[%emt 00:00:12]} 14. e4 {[%clk 01:30:05]} {[%emt 00:00:06]}
Be7 {[%clk 01:33:04]} {[%emt 00:00:11]} 15. Nd5 {[%clk 01:30:18]} {[%emt
00:00:17]} Bc5 {[%clk 01:32:26]} {[%emt 00:01:09]} 16. Rab1 {[%clk 01:20:02]}
{[%emt 00:10:46]} a5 {[%clk 01:31:46]} {[%emt 00:01:10]} 17. h3 {[%clk
01:19:55]} {[%emt 00:00:37]} Be6 {[%clk 01:30:22]} {[%emt 00:01:53]} 18. Ne1
{[%clk 01:06:31]} {[%emt 00:13:54]} b6 {[%clk 01:04:28]} {[%emt 00:26:25]} 19.
Kh2 {[%clk 01:00:39]} {[%emt 00:06:21]} g5 {[%clk 00:33:57]} {[%emt 00:31:01]}
20. Nd3 {[%clk 00:54:46]} {[%emt 00:06:23]} Bd4 {[%clk 00:34:14]} {[%emt
00:00:13]} 21. Bf3 {[%clk 00:46:03]} {[%emt 00:09:13]} b5 {[%clk 00:15:36]}
{[%emt 00:19:08]} 22. b3 {[%clk 00:25:40]} {[%emt 00:20:53]} bxc4 {[%clk
00:15:40]} {[%emt 00:00:26]} 23. bxc4 {[%clk 00:24:54]} {[%emt 00:01:16]} Nb4
{[%clk 00:13:07]} {[%emt 00:03:04]} 24. N3xb4 {[%clk 00:20:15]} {[%emt
00:05:09]} axb4 {[%clk 00:13:32]} {[%emt 00:00:05]} 25. Bg4 {[%clk 00:13:51]}
{[%emt 00:06:53]} Bxd5 {[%clk 00:08:42]} {[%emt 00:05:21]} 26. cxd5 {[%clk
00:13:40]} {[%emt 00:00:41]} Rd6 {[%clk 00:09:08]} {[%emt 00:00:03]} 27. Bd1
{[%clk 00:11:27]} {[%emt 00:02:43]} Ra6 {[%clk 00:05:36]} {[%emt 00:04:02]} 28.
Bb3 {[%clk 00:11:35]} {[%emt 00:00:22]} Rc8 {[%clk 00:06:02]} {[%emt 00:00:05]}
29. Kg2 {[%clk 00:09:04]} {[%emt 00:03:00]} Rc3 {[%clk 00:06:25]} {[%emt
00:00:08]} 1/2-1/2